bitfinex-derivatives/quotes_SOLF0:USTF0_20240818
["timestamp","ask_amount","ask_price","bid_price","bid_amount"]
[1724015909892,3.4111,146.55,146.54,7.34]
[1724015910193,13.8798,146.59,146.52,7.34]
[1724015910390,7.34,146.58,146.5,7.34]
[1724015910589,27.85,146.58,146.5,7.34]
[1724015910889,0.05095829,146.55,146.53,0.04419887]
[1724015911495,3.4112,146.54,146.53,0.04419887]
[1724015912494,0.05095829,146.55,146.47,3.4128]
[1724015912789,7.34,146.54,146.43,1.2318]
[1724015912988,7.34,146.54,146.48,7.34]
[1724015913190,1.2236,146.53,146.48,7.34]
[1724015913591,0.05081618,146.52,146.49,0.04620456]
[1724015913997,3.45775229,146.52,146.49,0.04620456]
[1724015914291,3.4121,146.5,146.49,0.04620456]
[1724015927705,27.85,146.5,146.41,70.48382728]
[1724015927907,7.34,146.48,146.4,7.34]
[1724015928108,6.5551,146.47,146.4,7.34]
[1724015928307,3.4139,146.43,146.4,10.7544]
[1724015928807,3.46588391,146.43,146.4,10.80133575]
[1724015929001,3.414,146.42,146.4,7.38693575]
[1724015929810,3.46578391,146.43,146.4,7.38693575]
[1724015930106,0.05198391,146.43,146.4,0.04693575]
[1724015930312,3.4142,146.42,146.4,7.38693575]
[1724015930602,0.05198391,146.43,146.35,3.4155]
[1724015930808,0.05198391,146.43,146.37,7.34]
[1724015930809,3.4148,146.39,146.37,7.34]
[1724015932108,3.45917912,146.39,146.37,7.38355078]
[1724015944110,3.4149,146.38,146.37,0.04355078]
[1724015951815,3.45907912,146.39,146.37,0.04355078]
[1724015952013,3.45907912,146.39,146.37,7.38355078]
[1724015957420,0.04437912,146.39,146.37,10.79865078]
[1724015958126,3.4149,146.38,146.37,0.04355078]
[1724015964321,0.04437912,146.39,146.37,7.38355078]
[1724015965330,3.45907912,146.39,146.37,7.38355078]
[1724015965520,0.04437912,146.39,146.37,0.04355078]
[1724015966819,3.4149,146.38,146.37,0.04355078]
[1724015970935,3.4159,146.34,146.31,4.0]
[1724015971132,7.34,146.38,146.31,7.34]
[1724015971329,7.34,146.38,146.31,10.7564]
[1724015971930,3.4158,146.35,146.33,0.04791589]
[1724015972131,0.05248989,146.36,146.33,0.04791589]
[1724015973639,3.4156,146.35,146.33,0.04791589]
[1724015975140,3.4156,146.35,146.33,7.38791589]
[1724015976738,3.46798989,146.36,146.34,7.34]
[1724015977137,0.05248989,146.36,146.34,7.34]
[1724015977449,3.46788989,146.36,146.34,7.34]
[1724015981250,3.4156,146.35,146.33,0.04791589]
[1724015982443,3.4156,146.35,146.34,7.34]
[1724015982638,3.46798989,146.36,146.34,7.34]
[1724015983144,0.05248989,146.36,146.34,7.34]
[1724015984845,3.4156,146.35,146.34,7.34]
[1724015985452,3.4156,146.35,146.33,0.04791589]
[1724015991752,0.05248989,146.36,146.33,0.04791589]
[1724015992254,3.4158,146.34,146.33,0.04791589]
[1724015992451,3.4158,146.34,146.29,4.6691]
[1724015992452,7.34,146.34,146.28,75.56929449]
[1724015992848,7.34,146.34,146.28,78.98649449]
[1724015993453,0.05186835,146.32,146.3,0.04582044]
[1724015993647,3.4166,146.31,146.3,0.04582044]
[1724015994856,3.4174,146.28,146.24,7.34]
[1724015995048,4.02,146.31,146.26,7.34]
[1724015995658,4.02,146.31,146.27,7.34]
[1724015995956,0.04611449,146.3,146.28,0.04744749]
[1724015996863,3.46301449,146.3,146.28,0.04744749]
[1724015998063,3.46301449,146.3,146.28,7.38744749]
[1724016001254,3.46301449,146.3,146.28,0.04744749]
[1724016002962,3.417,146.29,146.28,0.04744749]
[1724016004866,0.04611449,146.3,146.29,3.417]
[1724016005063,11.36,146.39,146.28,13.41849562]
[1724016005264,27.84,146.38,146.3,7.34]
[1724016006162,0.04994402,146.35,146.33,0.04583994]
[1724016007565,3.4158,146.34,146.33,0.04583994]
[1724016061808,14.88069554,146.35,146.28,1.3227]
[1724016062012,7.34,146.33,146.28,1.3227]
[1724016062815,3.4168,146.31,146.29,0.04316851]
[1724016064314,3.4168,146.3,146.29,0.04316851]
[1724016064521,7.34,146.31,146.24,4.0]
[1724016064719,7.34,146.31,146.24,12.6927]
[1724016065017,7.34,146.31,146.24,5.3527]
[1724016065220,11.34,146.31,146.24,8.6927]
[1724016065610,0.0497523,146.29,146.26,0.04277153]
[1724016066914,7.34,146.28,146.26,0.04277153]
[1724016067111,3.4175,146.27,146.26,0.04277153]
[1724016069428,7.4175,146.27,146.26,0.04277153]
[1724016074520,4.0,146.27,146.26,0.04277153]
[1724016075927,7.4175,146.27,146.26,0.04277153]
[1724016084134,3.4175,146.27,146.26,0.04277153]
[1724016085438,3.4178,146.26,146.22,10.7585]
[1724016086038,3.4178,146.26,146.22,3.4185]
[1724016086341,11.34,146.28,146.22,7.34]
[1724016086535,0.05022245,146.25,146.21,7.34]
[1724016086735,3.46842245,146.25,146.22,3.4186]
[1724016086935,3.46842245,146.25,146.21,7.34]
[1724016087137,0.05022245,146.25,146.21,7.34]
[1724016087437,3.4183,146.24,146.21,10.7587]
[1724016087637,3.4183,146.24,146.21,3.4187]
[1724016088341,3.4185,146.23,146.21,3.4187]
[1724016089430,3.4185,146.23,146.2,12.0071]
[1724016091236,3.4185,146.23,146.2,4.6671]
[1724016091437,3.4185,146.23,146.21,7.34]
[1724016092644,3.4185,146.23,146.2,4.6671]
[1724016092837,3.4185,146.23,146.21,7.34]
[1724016094144,3.4185,146.23,146.2,4.6671]
[1724016094346,3.4185,146.23,146.2,12.0071]
[1724016097151,3.4185,146.23,146.2,4.6671]
[1724016097444,3.4185,146.23,146.2,12.0071]
[1724016098047,3.4183,146.24,146.2,12.0071]
[1724016098742,3.4183,146.24,146.2,4.6671]
[1724016098939,3.4183,146.24,146.2,12.0071]
[1724016102749,3.4185,146.23,146.2,3.4191]
[1724016103055,3.4185,146.23,146.19,3.4192]
[1724016103555,0.04336848,146.22,146.19,10.7592]
[1724016106857,0.04336848,146.22,146.2,3.4191]
[1724016107248,3.46206848,146.22,146.18,7.34]
[1724016108860,3.46206848,146.22,146.19,3.4192]
[1724016109557,0.04336848,146.22,146.19,7.34]
[1724016110150,0.04336848,146.22,146.17,1.3228]
[1724016110355,0.04336848,146.22,146.19,7.34]
[1724016110754,0.04336848,146.22,146.19,10.7592]
[1724016111257,0.04336848,146.22,146.19,7.34]
[1724016111458,0.04336848,146.22,146.2,3.4191]
[1724016123453,3.46206848,146.22,146.2,3.4191]
[1724016123658,0.04336848,146.22,146.2,3.4191]
[1724016127661,0.04336848,146.22,146.18,3.4194]
[1724016128059,0.04336848,146.22,146.17,1.3228]
[1724016128266,3.4191,146.2,146.17,4.7424]
[1724016128664,0.04336848,146.22,146.17,1.3228]
[1724016129266,3.419,146.21,146.18,3.4195]
[1724016130867,3.4189,146.21,146.18,3.4195]
[1724016132160,3.4191,146.2,146.17,1.3228]
[1724016132361,3.4191,146.2,146.17,4.7425]
[1724016135274,7.34,146.19,146.13,20.37548084]
[1724016135478,7.34,146.19,146.14,7.34]
[1724016135676,0.04992985,146.17,146.12,1.3005]
[1724016135876,0.04992985,146.17,146.15,3.4203]
[1724016137078,0.04992985,146.17,146.16,7.34]
[1724016138879,0.04992985,146.17,146.16,10.76]
[1724016139079,0.04992985,146.17,146.16,7.34]
[1724016140275,0.04992985,146.17,146.15,3.4201]
[1724016140477,0.04992985,146.17,146.15,10.7601]
[1724016148581,3.46982985,146.17,146.15,7.34]
[1724016150993,3.46982985,146.17,146.15,10.7603]
[1724016151194,0.04992985,146.17,146.15,10.7603]
[1724016153088,3.46982985,146.17,146.14,3.4204]
[1724016156697,0.04992985,146.17,146.15,3.4203]
[1724016156900,0.04992985,146.17,146.15,10.7603]
[1724016157494,3.46972985,146.17,146.15,10.7603]
[1724016158799,3.46972985,146.17,146.15,7.34]
[1724016159795,3.42,146.16,146.14,3.4204]
[1724016160093,3.42,146.16,146.13,10.7606]
[1724016160294,0.04992985,146.17,146.13,7.34]
[1724016160694,3.46982985,146.17,146.14,3.4204]
[1724016170011,3.46982985,146.17,146.14,10.7604]
[1724016171315,0.04992985,146.17,146.15,3.4201]
[1724016172409,0.04992985,146.17,146.14,7.34]
[1724016172609,0.04992985,146.17,146.15,7.34]
[1724016173007,0.04992985,146.17,146.15,10.7602]
[1724016175310,0.04992985,146.17,146.15,7.34]
[1724016178918,3.46972985,146.17,146.15,7.34]
[1724016181320,3.46972985,146.17,146.13,10.7606]
[1724016181321,3.42,146.16,146.13,10.7606]
[1724016183417,3.46992985,146.17,146.14,3.4205]
[1724016186621,3.4203,146.15,146.12,1.3005]
[1724016186824,0.04992985,146.17,146.12,8.6405]
[1724016187819,3.4202,146.16,146.13,3.4207]
[1724016188431,7.38992985,146.17,146.11,3.4211]
[1724016188621,11.38992985,146.17,146.11,3.4211]
[1724016189223,3.4206,146.14,146.11,3.4211]
[1724016189526,3.4668464,146.14,146.11,3.4211]
[1724016193217,3.4208,146.13,146.1,10.7614]
[1724016194424,3.4208,146.13,146.09,1.2605]
[1724016194625,3.4208,146.13,146.07,4.0]
[1724016194626,7.3862464,146.14,146.07,4.0]
[1724016194823,7.3862464,146.14,146.07,11.34]
[1724016195025,7.3862464,146.14,146.07,7.34]
[1724016195331,3.4213,146.11,146.08,3.4219]
[1724016195625,3.4213,146.11,146.04,1.354]
[1724016195626,0.0520265,146.11,146.04,1.354]
[1724016195832,0.0520265,146.11,146.06,7.34]
[1724016196129,3.4217,146.09,146.06,10.7623]
[1724016196331,3.4217,146.09,146.06,3.4223]
[1724016196627,7.3920265,146.11,146.05,3.4226]
[1724016196826,0.04528439,146.09,146.05,3.4226]
[1724016197026,7.46708439,146.09,146.05,3.4226]
[1724016198232,3.4219,146.08,146.05,3.4226]
[1724016198429,3.4219,146.08,146.04,3.4228]
[1724016198628,3.4219,146.08,146.04,10.7628]
[1724016198834,4.04528439,146.09,146.04,10.7628]
[1724016199232,3.422,146.08,146.04,10.7628]
[1724016199636,3.422,146.08,146.05,3.4226]
[1724016202135,3.422,146.08,146.04,7.34]
[1724016202136,3.4222,146.07,146.04,3.4228]
[1724016202329,4.04528439,146.09,146.04,7.34]
[1724016202530,4.04528439,146.09,146.02,72.38440167]
[1724016202732,3.4221,146.08,146.04,7.34]
[1724016202933,4.04528439,146.09,146.04,7.34]
[1724016203335,7.46708439,146.09,146.05,3.4224]
[1724016203731,3.46708439,146.09,146.05,3.4224]
[1724016203935,3.46708439,146.09,146.06,3.4223]
[1724016204733,0.04528439,146.09,146.02,72.38440167]
[1724016205239,0.04528439,146.09,146.04,7.34]
[1724016205433,0.04528439,146.09,146.02,72.38440167]
[1724016205635,0.04528439,146.09,146.04,7.34]
[1724016205840,3.4221,146.08,146.05,3.4226]
[1724016208942,3.46708439,146.09,146.06,3.4224]
[1724016209739,0.04528439,146.09,146.07,10.7621]
[1724016217051,0.04528439,146.09,146.07,3.4221]
[1724016217449,0.04528439,146.09,146.08,3.4219]
[1724016217651,0.04528439,146.09,146.06,7.34]
[1724016218451,0.04528439,146.09,146.02,74.50546217]
[1724016218650,0.04528439,146.09,146.05,7.34]
[1724016220045,0.04528439,146.09,146.06,3.4223]
[1724016221958,3.46698439,146.09,146.06,3.4223]
[1724016223151,0.04528439,146.09,146.02,74.50546217]
[1724016223451,0.04528439,146.09,146.04,7.34]
[1724016223756,3.46708439,146.09,146.05,3.4224]
[1724016226752,3.46708439,146.09,146.06,3.4223]
[1724016228463,0.04528439,146.09,146.07,3.4221]
[1724016229562,3.46698439,146.09,146.06,3.4223]
[1724016237058,0.04528439,146.09,146.07,3.422]
[1724016238065,0.04528439,146.09,146.07,10.762]
[1724016242462,0.04528439,146.09,146.07,7.34]
[1724016242664,0.04528439,146.09,146.03,29.36]
[1724016242864,0.04528439,146.09,146.06,7.34]
[1724016243162,0.04528439,146.09,146.07,3.4221]
[1724016247773,3.46708439,146.09,146.06,3.4222]
[1724016249066,0.04528439,146.09,146.05,7.34]
[1724016250273,0.04528439,146.09,146.07,7.34]
[1724016250772,0.04528439,146.09,146.07,10.762]
[1724016251167,0.04528439,146.09,146.08,7.34]
[1724016251367,0.04528439,146.09,146.08,10.7619]
[1724016258782,0.04528439,146.09,146.07,7.34]
[1724016259772,0.04528439,146.09,146.08,3.4219]
[1724016262383,0.04528439,146.09,146.07,3.422]
[1724016265182,0.04528439,146.09,146.07,10.762]
[1724016266083,0.04528439,146.09,146.08,3.4219]
[1724016268285,0.04528439,146.09,146.07,10.762]
[1724016268486,0.04528439,146.09,146.07,7.34]
[1724016268886,0.04528439,146.09,146.08,3.4219]
[1724016271795,2.5047,146.16,146.08,7.34]
[1724016271998,2.5047,146.16,146.12,7.34]
[1724016272391,5.9249,146.16,146.13,3.4206]
[1724016272997,5.97174364,146.16,146.13,3.46588439]
[1724016275602,0.04684364,146.16,146.13,3.46588439]
[1724016278304,3.46694364,146.16,146.13,3.46588439]
[1724016278500,3.46694364,146.16,146.14,3.4205]
[1724016278894,0.04684364,146.16,146.14,3.4205]
[1724016280706,3.46694364,146.16,146.14,3.4205]
[1724016281005,0.04684364,146.16,146.14,3.4205]
[1724016284106,3.46694364,146.16,146.14,3.4205]
[1724016293515,0.04684364,146.16,146.14,3.4205]
[1724016295020,3.4203,146.15,146.13,0.04528439]
[1724016295416,0.04684364,146.16,146.13,0.04528439]
[1724016295716,3.46704364,146.16,146.13,3.46598439]
[1724016299822,3.4203,146.15,146.13,0.04528439]
[1724016300518,0.04684364,146.16,146.13,0.04528439]
[1724016301219,0.04684364,146.16,146.13,7.38528439]
[1724016301724,3.46694364,146.16,146.13,10.80588439]
[1724016311725,0.04684364,146.16,146.13,0.04528439]
[1724016311926,7.34,146.15,146.13,0.04528439]
[1724016312227,7.34,146.14,146.09,1.3069]
[1724016313028,3.4211,146.12,146.09,4.7285]
[1724016313224,7.34,146.14,146.02,74.50546217]
[1724016313423,3.4214,146.11,146.08,3.4218]
[1724016315022,3.4215,146.1,146.07,3.4221]
[1724016315224,3.4215,146.1,146.07,10.7621]
[1724016316027,3.4217,146.09,146.07,7.34]
[1724016316229,0.04721667,146.12,146.07,7.34]
[1724016317133,3.4216,146.1,146.07,10.7621]
[1724016318728,0.04721667,146.12,146.06,3.4223]
[1724016318930,0.05189137,146.1,146.06,10.7623]
[1724016319432,0.05189137,146.1,146.07,7.34]
[1724016320821,3.4218,146.09,146.07,7.34]
[1724016324632,0.05189137,146.1,146.04,1.3584]
[1724016324933,0.05189137,146.1,146.05,7.34]
[1724016325231,3.4218,146.09,146.04,1.3584]
[1724016325428,0.05189137,146.1,146.03,4.0]
[1724016325625,0.05189137,146.1,146.04,7.34]
[1724016326430,3.4219,146.08,146.05,3.4225]
[1724016333437,7.39189137,146.1,146.04,3.4227]
[1724016333734,7.34,146.09,146.03,7.34]
[1724016333931,9.8442,146.09,146.03,7.34]
[1724016334135,3.4223,146.07,146.03,10.7629]
[1724016334539,0.04741991,146.06,146.02,3.4232]
[1724016334735,7.38741991,146.06,145.99,7.34]
[1724016335036,3.423,146.04,145.99,7.34]
[1724016335237,0.04470912,146.04,145.98,4.0]
[1724016335435,0.04470912,146.04,145.99,7.34]
[1724016336239,0.04470912,146.04,145.98,4.0]
[1724016336535,0.04470912,146.04,146.03,7.34]
[1724016336940,0.04470912,146.04,146.03,10.7631]
[1724016337935,11.94519078,146.11,146.04,3.4228]
[1724016337936,4.0,146.1,146.04,3.4228]
[1724016338143,4.0,146.1,146.06,7.34]
[1724016338442,3.4221,146.08,146.06,7.34]
[1724016338836,3.47031557,146.08,146.06,7.38470912]
[1724016339035,3.4222,146.07,146.06,0.04470912]
[1724016351254,3.4228,146.05,145.98,4.0]
[1724016351754,3.4228,146.05,146.01,7.34]
[1724016351940,3.4228,146.05,145.98,4.0]
[1724016352144,3.4228,146.05,146.01,7.34]
[1724016352349,0.05132073,146.03,146.01,7.34]
[1724016352551,0.05132073,146.03,146.02,3.4233]
[1724016358547,0.05132073,146.03,146.02,7.34]
[1724016359256,0.05132073,146.03,146.02,10.7633]
[1724016359853,0.05132073,146.03,146.0,3.4237]
[1724016360053,0.05132073,146.03,146.01,7.34]
[1724016360560,0.05132073,146.03,146.02,3.4233]
[1724016361350,1.2309,146.11,146.01,7.34]
[1724016361660,1.2309,146.11,146.06,7.34]
[1724016361661,4.02,146.1,146.06,7.34]
[1724016362154,7.4416,146.1,146.06,7.34]
[1724016362557,0.052066,146.09,146.07,0.05132073]
[1724016363151,0.052066,146.09,146.08,7.34]
[1724016365656,0.052066,146.09,146.08,10.7619]
[1724016370467,0.052066,146.09,146.08,3.4219]
[1724016371160,0.052066,146.09,146.07,0.05132073]
[1724016371161,0.052066,146.09,146.07,3.47342073]
[1724016371353,0.052066,146.09,146.08,7.34]
[1724016371859,0.052066,146.09,146.08,10.7619]
[1724016376364,0.052066,146.09,146.08,3.4219]
[1724016380263,0.052066,146.09,146.08,10.7619]
[1724016392370,0.052066,146.09,146.08,12.0956]
[1724016392773,3.4209,146.13,146.11,7.34]
[1724016393769,3.46660539,146.13,146.11,7.38523654]
[1724016399878,0.04570539,146.13,146.11,10.80623654]
[1724016400672,3.46650539,146.13,146.11,10.80623654]
[1724016405183,3.46650539,146.13,146.11,7.38523654]
[1724016413380,0.04570539,146.13,146.12,10.761]
[1724016415289,0.04570539,146.13,146.12,7.34]
[1724016421283,0.04570539,146.13,146.12,10.761]
[1724016421782,0.04570539,146.13,146.12,7.34]
[1724016423992,0.04570539,146.13,146.11,0.04523654]
[1724016425593,3.46660539,146.13,146.11,0.04523654]
[1724016427489,3.46660539,146.13,146.11,3.46643654]
[1724016428594,0.04570539,146.13,146.11,3.46643654]
[1724016430790,3.46650539,146.13,146.11,3.46643654]
[1724016432190,3.46650539,146.13,146.11,10.80643654]
[1724016437588,3.46650539,146.13,146.11,7.38523654]
[1724016437795,3.421,146.12,146.11,7.38523654]
[1724016440594,3.421,146.12,146.11,0.04523654]
[1724016441502,3.46660539,146.13,146.11,0.04523654]
[1724016442901,3.421,146.12,146.11,0.04523654]
[1724016444997,3.46650539,146.13,146.11,0.04523654]
[1724016452900,0.04570539,146.13,146.11,3.46633654]
[1724016456204,0.04570539,146.13,146.11,10.80633654]
[1724016458814,0.04570539,146.13,146.12,3.421]
[1724016463916,0.04570539,146.13,146.11,10.80633654]
[1724016481441,0.04570539,146.13,146.12,3.421]
[1724016486750,0.04570539,146.13,146.11,10.80633654]
[1724016499850,0.04570539,146.13,146.11,7.38523654]
[1724016500647,0.04570539,146.13,146.12,7.34]
[1724016502253,0.04570539,146.13,146.12,10.761]
[1724016518450,0.04570539,146.13,146.12,7.34]
[1724016536470,0.04570539,146.13,146.11,3.46643654]
[1724016536673,7.38570539,146.13,146.07,7.34]
[1724016536979,2.5623,146.12,146.07,7.34]
[1724016537169,3.4218,146.09,146.07,7.34]
[1724016537670,3.46960671,146.09,146.07,7.39014232]
[1724016540774,0.04780671,146.09,146.07,10.81224232]
[1724016541980,3.46950671,146.09,146.07,7.39014232]
[1724016542387,0.04780671,146.09,146.08,7.34]
[1724016559295,0.04780671,146.09,146.07,3.47214232]
[1724016567199,0.04780671,146.09,146.08,3.4219]
[1724016580611,9.8209,146.15,146.09,3.4217]
[1724016580815,9.8209,146.15,146.06,7.34]
[1724016580816,2.4809,146.15,146.06,157.23920087]
[1724016581011,7.34,146.14,146.06,157.23920087]
[1724016581615,0.04717365,146.11,146.09,0.04409447]
[1724016587015,0.04717365,146.11,146.09,3.46579447]
[1724016588010,0.04717365,146.11,146.09,0.04409447]
[1724016589121,0.04717365,146.11,146.09,3.46579447]
[1724016603237,0.04717365,146.11,146.1,3.4215]
[1724016609842,0.04717365,146.11,146.1,10.7615]
[1724016610644,3.4207,146.14,146.11,3.421]
[1724016611741,3.46408063,146.14,146.11,3.421]
[1724016611940,3.46408063,146.14,146.12,3.421]
[1724016620354,3.46408063,146.14,146.11,3.4211]
[1724016625455,0.04338063,146.14,146.12,3.421]
[1724016626861,3.46388063,146.14,146.11,3.4211]
[1724016631160,3.4208,146.13,146.1,10.7613]
[1724016634558,3.4208,146.13,146.1,14.7413]
[1724016640358,0.04338063,146.14,146.1,11.32]
[1724016640962,3.4208,146.13,146.1,14.7413]
[1724016641968,3.4208,146.13,146.1,7.4013]
[1724016649573,3.421,146.12,146.1,3.98]
[1724016650474,3.421,146.12,146.09,7.44569447]
[1724016659678,3.421,146.12,146.09,14.78569447]
[1724016659884,3.4208,146.13,146.1,3.4214]
[1724016661076,3.46388063,146.14,146.11,10.7611]
[1724016661884,0.04338063,146.14,146.13,7.34]
[1724016662687,0.04338063,146.14,146.13,10.7608]
[1724016679302,0.04338063,146.14,146.13,3.4208]
[1724016680504,0.04338063,146.14,146.12,3.47088186]
[1724016681001,7.38338063,146.14,146.12,0.04998186]
[1724016681199,3.4208,146.13,146.12,0.04998186]
[1724016681403,10.7608,146.13,146.12,0.04998186]
[1724016681598,7.34,146.13,146.07,20.38583171]
[1724016681903,3.4219,146.09,146.06,157.30150087]
[1724016682103,3.4219,146.09,146.06,153.87920087]
[1724016682301,7.34,146.1,146.07,3.4222]
[1724016682495,10.7616,146.1,146.07,3.4222]
[1724016682696,10.80754684,146.1,146.07,3.4667144]
[1724016683805,3.46754684,146.1,146.07,3.4667144]
[1724016687098,3.4217,146.09,146.07,3.4667144]
[1724016687907,3.4217,146.09,146.07,0.0445144]
[1724016688308,0.04594684,146.1,146.07,0.0445144]
[1724016689004,3.4218,146.09,146.07,0.0445144]
[1724016692807,3.4218,146.09,146.07,7.3845144]
[1724016697110,3.4219,146.08,146.07,7.3845144]
[1724016711418,0.04594684,146.1,146.07,7.3845144]
[1724016711921,3.4219,146.08,146.07,7.3845144]
[1724016716121,3.4219,146.08,146.07,0.0445144]
[1724016722226,3.4225,146.06,146.03,3.423]
[1724016722429,3.4225,146.06,146.04,7.34]
[1724016723429,3.47314772,146.06,146.04,7.39214861]
[1724016731122,3.4226,146.05,146.04,7.39214861]
[1724016741943,0.05064772,146.06,146.04,7.39214861]
[1724016742243,0.05064772,146.06,146.05,7.34]
[1724016743146,3.47304772,146.06,146.05,7.34]
[1724016750244,3.47304772,146.06,146.04,7.39214861]
[1724016752954,0.05064772,146.06,146.04,10.81484861]
[1724016753154,0.05064772,146.06,146.04,7.39214861]
[1724016754250,3.47314772,146.06,146.04,7.39214861]
[1724016767963,3.4226,146.05,146.04,0.05214861]
[1724016774864,3.47314772,146.06,146.04,0.05214861]
[1724016775063,0.05064772,146.06,146.04,0.05214861]
[1724016775564,3.4226,146.05,146.04,0.05214861]
[1724016777772,0.05064772,146.06,146.04,7.39214861]
[1724016779268,1.3403,146.13,146.04,7.39214861]
[1724016779269,3.4218,146.09,146.05,3.4226]
[1724016779470,3.4218,146.09,146.08,7.34]
[1724016782772,3.4219,146.08,146.07,0.04517632]
[1724016782972,0.04702261,146.1,146.07,0.04517632]
[1724016783375,3.4219,146.09,146.07,0.04517632]
[1724016784376,3.4219,146.08,146.07,0.04517632]
[1724016785471,3.4218,146.09,146.07,0.04517632]
[1724016787868,3.4219,146.08,146.07,0.04517632]
[1724016788070,7.34,146.08,146.02,1.3568]
[1724016788471,3.4226,146.06,146.02,1.3568]
[1724016789175,0.05240099,146.05,146.03,0.04350873]
[1724016793277,3.47510099,146.05,146.03,0.04350873]
[1724016795778,3.4229,146.04,146.03,0.04350873]
[1724016796079,7.39240099,146.05,145.99,7.34]
[1724016796584,0.05240099,146.05,145.99,10.764]
[1724016796987,0.05240099,146.05,146.01,0.02059696]
[1724016797983,3.4233,146.02,146.01,0.02059696]
[1724016800586,0.05240099,146.05,146.01,10.78419696]
[1724016801188,3.47520099,146.05,146.01,10.78419696]
[1724016802797,3.423,146.04,146.01,10.78419696]
[1724016804398,3.423,146.04,146.01,3.44419696]
[1724016804600,3.4231,146.03,146.01,0.02059696]
[1724016805801,3.4233,146.02,146.01,0.02059696]
[1724016808504,3.4232,146.03,146.01,0.02059696]
[1724016810603,3.4233,146.02,146.01,0.02059696]
[1724016813808,3.4232,146.03,146.01,0.02059696]
[1724016815207,3.4231,146.03,146.01,0.02059696]
[1724016816307,3.4233,146.02,146.01,0.02059696]
[1724016819513,3.4241,145.99,145.97,7.34]
[1724016819708,7.34,145.99,145.88,3.98]
[1724016819915,1.3385,145.98,145.92,7.34]
[1724016820213,8.6785,145.98,145.92,3.4256]
[1724016820603,0.04422759,145.96,145.91,7.34]
[1724016820914,0.04422759,145.96,145.92,3.4256]
[1724016820915,3.4252,145.95,145.92,3.4256]
[1724016821314,0.04422759,145.96,145.92,10.7656]
[1724016822211,3.4251,145.95,145.92,10.7656]
[1724016823215,3.4253,145.94,145.91,10.7658]
[1724016823514,3.4771106,145.94,145.91,10.7658]
[1724016825412,3.4771106,145.94,145.93,7.34]
[1724016825609,0.0518106,145.94,145.86,1.3568]
[1724016825811,0.0518106,145.94,145.9,7.34]
[1724016826211,3.4256,145.93,145.9,10.766]
[1724016826617,3.4256,145.93,145.86,8.81353138]
[1724016826618,0.0518106,145.94,145.86,8.81353138]
[1724016826821,3.4258,145.92,145.89,10.7662]
[1724016827015,0.04769704,145.91,145.89,10.7662]
[1724016828926,0.04769704,145.91,145.89,3.4262]
[1724016829227,0.04769704,145.91,145.88,3.4266]
[1724016829427,0.04769704,145.91,145.88,10.7666]
[1724016829821,0.04769704,145.91,145.88,3.4266]
[1724016830220,3.47369704,145.91,145.88,3.4266]
[1724016833328,3.4263,145.9,145.87,3.4268]
[1724016833529,3.4263,145.9,145.87,10.7668]
[1724016833825,0.04769704,145.91,145.88,3.4265]
[1724016834430,3.47369704,145.91,145.88,3.4265]
[1724016835431,3.4262,145.9,145.87,10.7667]
[1724016836429,3.4262,145.9,145.88,3.4266]
[1724016836932,3.4262,145.9,145.86,1.3568]
[1724016837129,3.4262,145.9,145.87,3.4267]
[1724016837320,3.4262,145.9,145.86,1.3568]
[1724016837629,3.4262,145.9,145.87,3.4267]
[1724016838227,0.04769704,145.91,145.88,7.34]
[1724016838427,0.04769704,145.91,145.89,7.34]
[1724016838829,0.04769704,145.91,145.9,3.4261]
[1724016839924,7.4046,145.97,145.94,3.425]
[1724016840128,3.4246,145.97,145.94,10.765]
[1724016841031,3.47495349,145.97,145.94,10.81041844]
[1724016841822,0.05035349,145.97,145.95,3.425]
[1724016844730,0.05035349,145.97,145.96,3.4247]
[1724016844924,0.05035349,145.97,145.96,10.7647]